bitfinex/quotes_ETHUSD_20241122
["timestamp","ask_amount","ask_price","bid_price","bid_amount"]
[1732304111257,1.52294108,3282.6,3280.6,9e-08]
[1732304111559,1.52294108,3282.6,3280.5,0.38290853]
[1732304111560,1.52294108,3282.6,3280.5,1e-07]
[1732304112668,1.56774926,3282.0,3280.3,0.05707244]
[1732304112821,0.55,3282.0,3280.3,0.05707244]
[1732304113017,1.54248413,3281.7,3280.3,0.05707244]
[1732304113218,1.5987,3281.7,3280.3,0.05707244]
[1732304113417,1.52311818,3281.6,3280.4,0.3029]
[1732304113721,1.51907199,3281.7,3280.4,0.3029]
[1732304113925,0.55,3281.8,3280.4,0.3029]
[1732304114132,1.59205024,3281.7,3280.4,0.3029]
[1732304114485,1.5987,3282.1,3280.3,0.05707244]
[1732304114486,1.57352737,3282.0,3280.3,2.8e-07]
[1732304115085,1.50524459,3282.4,3280.3,2.8e-07]
[1732304115294,1.58021001,3282.2,3280.3,2.8e-07]
[1732304115452,1.50524459,3282.4,3280.3,2.8e-07]
[1732304116049,1.50524459,3282.4,3280.2,0.3029]
[1732304116050,1.50524459,3282.4,3280.2,0.33499029]
[1732304116360,1.57352737,3282.0,3280.3,0.3029]
[1732304116682,1.58021001,3282.2,3280.3,0.3029]
[1732304116889,1.57352737,3282.0,3280.3,0.3029]
[1732304117469,1.57352737,3282.0,3280.5,0.3029]
[1732304117647,1.5258,3282.3,3280.2,0.03209029]
[1732304117648,0.18323996,3280.6,3280.2,0.3029]
[1732304117848,1.58021001,3282.2,3280.2,0.3029]
[1732304118296,1.58021001,3282.2,3280.4,0.3029]
[1732304118954,1.57834106,3281.7,3280.4,0.3029]
[1732304119148,1.57834106,3281.7,3280.3,0.22977623]
[1732304119149,1.52319189,3281.9,3280.3,0.22897623]
[1732304119587,1.57834106,3281.7,3280.3,1.7e-07]
[1732304120561,1.57834106,3281.7,3279.8,6.95751776]
[1732304120758,1.57834106,3281.7,3279.9,0.59]
[1732304121388,1.57843613,3281.9,3279.9,0.59]
[1732304121692,0.00999981,3283.1,3280.3,7.5e-07]
[1732304121693,1.57151597,3282.8,3280.3,7.5e-07]
[1732304121893,1.57151597,3282.8,3280.2,8.1e-07]
[1732304122288,0.01999963,3283.1,3280.1,5.13981222]
[1732304122289,2.0894298,3280.2,3280.1,5.9231]
[1732304122604,1.57018558,3282.1,3280.1,8.01246407]
[1732304122764,1.57018558,3282.1,3280.1,5.9231]
[1732304122958,1.59094733,3282.2,3280.1,5.9231]
[1732304123662,1.53734951,3281.8,3280.2,5.9e-07]
[1732304123876,0.55,3281.9,3280.2,9e-08]
[1732304124083,1.53734951,3281.8,3280.2,0.30290009]
[1732304124405,0.31836458,3280.2,3280.1,5.9231]
[1732304124598,1.50503933,3282.2,3280.1,8.56085203]
[1732304124898,1.50503933,3282.2,3280.1,9.00543384]
[1732304125067,1.50503933,3282.2,3280.1,6.4731]
[1732304125268,1.50503933,3282.2,3280.2,0.3029]
[1732304125568,0.30289959,3280.2,3280.1,5.9231]
[1732304125798,1.56026392,3282.2,3280.1,5.6194]
[1732304126164,1.56026392,3282.2,3280.2,0.3029]
[1732304126589,0.55,3281.9,3280.2,0.3029]
[1732304126901,0.55,3281.9,3280.1,5.6194]
[1732304126902,0.31836457,3280.2,3280.1,5.6194]
[1732304127072,0.55,3281.9,3280.1,5.6194]
[1732304127073,1.58521198,3281.8,3280.1,5.6194]
[1732304127275,1.58521198,3281.8,3280.1,5.3165009]
[1732304128186,1.58521198,3281.8,3280.2,0.3029]
[1732304128373,0.55,3281.9,3280.2,0.3029]
[1732304128374,1.54525661,3281.5,3280.2,0.3029]
[1732304128579,0.55,3281.4,3280.2,0.3029]
[1732304128884,1.53957232,3281.2,3279.8,3.21]
[1732304129091,1.53957232,3281.2,3278.7,2.53233384]
[1732304129297,1.52592734,3281.0,3279.1,0.3029]
[1732304129500,1.5315,3280.6,3279.1,0.3029]
[1732304129669,1.5315,3280.6,3278.6,0.3029]
[1732304129872,0.55,3280.3,3278.5,0.1456614]
[1732304130097,0.55999981,3280.5,3278.5,0.1456614]
[1732304130098,1.5315,3280.2,3278.5,0.1456614]
[1732304130404,1.54149982,3280.2,3278.6,0.3029]
[1732304130969,1.5315,3280.2,3278.6,0.3029]
[1732304131783,1.5315,3280.2,3278.8,0.3029]
[1732304133294,0.00999981,3280.3,3278.5,0.1953614]
[1732304133295,1.64569982,3280.1,3278.6,0.3029]
[1732304134076,1.6357,3279.8,3278.6,0.3029]
[1732304135404,1.6357,3279.8,3279.0,0.3029]
[1732304135618,1.6357,3279.8,3279.1,0.3029]
[1732304136474,1.535,3280.5,3279.1,0.3029]
[1732304136704,1.535,3280.5,3278.9,0.0497]
[1732304137714,1.535,3280.5,3278.8,0.3029]
[1732304137715,1.535,3280.5,3279.2,0.03781528]
[1732304137872,1.535,3280.5,3279.4,0.03781528]
[1732304138773,1.535,3280.5,3279.0,0.03781528]
[1732304139172,1.535,3280.5,3279.2,0.03781528]
[1732304139408,1.535,3280.5,3279.4,0.03781528]
[1732304140616,1.535,3280.5,3279.0,0.03781528]
[1732304141121,1.232,3280.5,3279.3,0.303]
[1732304141281,1.232,3280.5,3279.2,0.03781528]
[1732304141282,1.232,3280.5,3279.4,0.03781528]
[1732304141679,1.54137026,3280.7,3279.5,0.55]
[1732304141921,1.54137026,3280.7,3278.8,0.30135879]
[1732304141922,1.54137026,3280.7,3279.8,0.03781528]
[1732304142223,1.5382141,3281.7,3280.0,0.03781528]
[1732304142426,1.52063305,3281.6,3279.7,0.8529]
[1732304143777,1.52063305,3281.6,3279.7,0.3029]
[1732304143979,1.56766309,3281.4,3279.7,0.3029]
[1732304144207,1.52063305,3281.6,3279.7,0.3029]
[1732304144407,0.00999982,3281.7,3279.9,0.3029]
[1732304144408,1.53957232,3281.2,3279.9,0.3029]
[1732304144606,1.5089,3281.3,3279.9,0.3029]
[1732304144815,1.53957232,3281.2,3279.9,0.3029]
[1732304145019,1.52592734,3281.0,3279.9,0.3029]
[1732304145516,1.52592734,3281.0,3279.6,2.92354369]
[1732304145517,1.52592734,3281.0,3279.7,0.3029]
[1732304149584,1.52592734,3281.0,3279.7,0.1275115]
[1732304149784,1.5074,3281.2,3279.6,2.92274369]
[1732304150031,1.52242805,3280.9,3279.6,2.92274369]
[1732304150226,3.06317249,3280.8,3279.6,2.92274369]
[1732304150523,3.06317249,3280.8,3279.6,2.61915369]
[1732304154446,0.00999982,3281.0,3279.0,10.0]
[1732304154447,1.58498034,3280.6,3279.0,10.0]
[1732304154601,1.58498034,3280.6,3279.1,0.3029]
[1732304154923,1.58498034,3280.6,3278.7,0.3029]
[1732304155124,1.58498034,3280.6,3278.9,0.3029]
[1732304156311,1.58498034,3280.6,3279.3,0.3029]
[1732304156936,1.58498034,3280.6,3278.8,0.55]
[1732304156937,1.58498034,3280.6,3279.1,0.3029]
[1732304157790,1.58498034,3280.6,3278.9,0.3029]
[1732304158027,1.58498034,3280.6,3278.8,0.55]
[1732304158028,1.58498034,3280.6,3279.1,0.3029]
[1732304158993,1.58498034,3280.6,3278.9,0.3029]
[1732304159700,1.58498034,3280.6,3278.6,3.88101307]
[1732304160042,0.00999982,3281.1,3278.6,3.88101307]
[1732304160043,1.5469667,3280.4,3278.8,0.3037]
[1732304160992,1.5469667,3280.4,3278.7,1.81101307]
[1732304160993,1.5469667,3280.4,3279.0,0.3037]
[1732304162032,1.5469667,3280.4,3278.9,0.3037]
[1732304162223,1.5469667,3280.4,3279.1,0.3037]
[1732304162535,1.55156134,3281.3,3279.3,0.3037]
[1732304163343,1.55156134,3281.3,3279.4,0.3037]
[1732304163842,1.5508111,3280.7,3279.3,0.3037]
[1732304164235,1.54632645,3280.5,3279.3,0.3037]
[1732304164433,1.5469667,3280.4,3279.2,10.0]
[1732304164617,1.64,3280.3,3278.6,1.26101307]
[1732304164819,1.64,3280.3,3278.7,1.86754576]
[1732304165019,1.64,3280.3,3278.6,2.30357691]
[1732304165020,1.52034841,3280.2,3278.9,0.3037]
[1732304165765,2.13368977,3280.3,3278.4,1.89371673]
[1732304165935,1.6294,3280.1,3278.6,0.3037]
[1732304166455,1.6031,3279.7,3278.6,0.3037]
[1732304167073,1.6031,3279.7,3277.6,0.3037]
[1732304167248,1.6031,3279.7,3277.8,0.3037]
[1732304167559,1.6031,3279.7,3279.5,0.3037]
[1732304167866,1.6031,3279.7,3279.6,0.3037]
[1732304168152,1.6031,3279.7,3279.4,2.2975]
[1732304168332,1.6031,3279.7,3279.5,0.3037]
[1732304169952,1.61309982,3279.7,3279.5,0.3037]
[1732304170134,1.6031,3279.7,3279.5,0.3037]
[1732304171403,0.00999982,3280.6,3279.5,0.3037]
[1732304171404,1.58368977,3280.3,3279.5,0.3037]
[1732304172574,1.58368977,3280.3,3279.4,2.2975]
[1732304172915,1.58368977,3280.3,3279.5,0.3037]
[1732304173209,1.58368977,3280.3,3279.4,2.2975]
[1732304173724,1.58368977,3280.3,3279.5,0.3037]
[1732304174072,1.58368977,3280.3,3279.4,2.2975]
[1732304174073,1.5412,3280.1,3279.4,2.2975]
[1732304174383,1.5412,3279.8,3279.4,2.2975]
[1732304174774,1.5412,3279.8,3279.5,0.3037]
[1732304174977,1.52034841,3280.2,3279.5,0.3037]
[1732304174978,1.5412,3279.6,3279.5,0.3037]
[1732304175522,1.5412,3279.6,3279.4,2.2975]
[1732304175819,1.5412,3279.6,3279.5,0.3037]
[1732304176307,0.6298,3279.6,3279.5,0.0001]
[1732304176813,0.0222,3279.6,3279.4,1.9939]
[1732304176976,1.52034841,3280.2,3279.4,1.9939]
[1732304177176,0.00999982,3280.1,3279.4,1.9939]
[1732304177389,1.58368977,3280.3,3279.4,1.9939]
[1732304177597,1.59368959,3280.3,3279.4,1.9939]
[1732304177979,1.6036894,3280.3,3279.4,1.9939]
[1732304178719,0.00999982,3280.1,3279.4,1.9939]
[1732304179393,1.52034841,3280.2,3279.4,1.9939]
[1732304180015,1.6298,3280.1,3279.4,1.9939]
[1732304180417,1.6298,3280.1,3279.5,0.3037]
[1732304180711,1.6298,3280.1,3279.4,1.9935]
[1732304181250,0.00999982,3280.3,3279.4,1.68986]
[1732304181527,0.00999982,3280.5,3279.5,0.3037]
[1732304181712,0.00999982,3280.3,3279.5,0.3037]
[1732304182013,0.00999982,3280.3,3279.7,0.3037]
[1732304182777,0.00999982,3280.3,3279.5,0.3037]
[1732304183588,0.00999982,3280.3,3279.5,1.8516]
[1732304183811,1.51384308,3280.6,3279.7,0.3037]
[1732304184129,1.5951683,3280.9,3279.9,0.3037]
[1732304184321,1.5392,3281.0,3279.9,0.3037]
[1732304184322,2.81526002,3281.0,3280.0,2.1712]
[1732304184482,1.59256825,3281.6,3280.1,0.3037]
[1732304184682,1.54185172,3282.1,3280.1,1.89744556]
[1732304184902,0.00999982,3282.1,3280.2,1.89744556]
[1732304185122,1.56548843,3282.0,3280.2,1.89744556]
[1732304185299,0.00999982,3282.1,3280.2,1.89744556]
[1732304185630,1.56548843,3282.0,3280.3,1.8777]
[1732304185790,1.51817179,3281.7,3280.3,1.8777]
[1732304186126,1.50149258,3281.4,3280.5,0.3037]
[1732304186420,1.56467684,3281.8,3280.5,0.3037]
[1732304186983,1.50149258,3281.4,3280.4,0.3037]
[1732304187385,1.6169,3281.4,3280.4,0.3037]
[1732304187894,0.00999982,3280.9,3280.0,0.3037]
[1732304188225,1.6049,3281.0,3279.9,1.5079]
[1732304189025,1.6049,3281.0,3280.0,0.3037]
[1732304189222,1.6049,3281.0,3280.2,0.3037]
[1732304190195,1.6049,3281.0,3280.0,0.3037]
[1732304190736,1.57129981,3281.3,3280.0,0.3037]
[1732304190905,1.5613,3281.3,3280.4,0.3037]
[1732304191237,1.511726,3281.6,3280.4,0.61301992]
[1732304191394,1.5986,3281.7,3280.6,0.3037]
[1732304191597,1.5986,3281.7,3280.5,0.55]
[1732304191598,1.5986,3282.0,3280.8,0.3037]
[1732304191830,1.5986,3282.0,3281.0,0.3037]
[1732304192704,1.5986,3282.0,3280.8,0.3037]
[1732304193540,0.00999982,3282.3,3281.0,0.3037]
[1732304193541,1.5485,3282.3,3281.0,0.3037]
[1732304193692,1.5485,3282.3,3280.9,1.86741992]
[1732304193693,1.5485,3282.3,3281.2,0.3037]
[1732304194249,1.5485,3282.3,3281.4,0.3037]
[1732304195996,1.5485,3282.3,3281.3,1.25466]
[1732304196321,1.2447,3282.3,3281.3,1.25466]
[1732304196524,0.00999982,3282.1,3281.4,0.3037]
[1732304196709,0.00999982,3282.1,3281.6,0.3037]
[1732304197037,1.2447,3282.3,3281.6,0.3037]
[1732304197038,1.25469982,3282.3,3281.6,0.3037]
[1732304197239,0.00999982,3282.1,3281.6,0.3037]
[1732304197537,1.25469982,3282.3,3281.6,0.3037]
[1732304197743,1.25469982,3282.3,3281.1,0.3037]
[1732304198098,1.2447,3282.3,3281.1,0.63557907]
[1732304198931,1.2447,3282.3,3281.3,0.3037]
[1732304200340,0.00999982,3282.1,3280.8,1.82059955]
[1732304200499,0.00999982,3282.1,3280.8,1.6434]
[1732304201037,0.00999982,3282.1,3280.8,1.97527907]
[1732304201336,0.00999982,3282.1,3280.9,0.3037]
[1732304201546,0.00999982,3282.1,3280.9,0.63557907]
[1732304203223,1.58243907,3282.2,3280.9,0.63557907]
[1732304203442,0.00999982,3282.1,3281.1,0.3037]
[1732304203644,1.54185172,3282.1,3281.1,0.3037]
[1732304203943,0.00999982,3281.9,3281.1,0.3037]
[1732304204240,1.6236,3282.0,3280.1,10.54614407]
[1732304204241,0.00999982,3281.5,3280.4,1.622]
[1732304204401,0.01999963,3281.5,3280.4,1.622]
[1732304204602,0.00999982,3281.2,3279.6,1.8639415]
[1732304204819,0.00999982,3281.2,3279.7,0.30420257]
[1732304205128,0.00999982,3281.2,3279.8,0.3037]
[1732304205334,0.00999982,3281.2,3279.9,0.3037]
[1732304206114,0.00999982,3281.2,3280.1,0.3037]
[1732304208132,1.5597,3280.9,3279.7,0.3037]
[1732304208335,0.00999982,3280.5,3279.3,1.5907]
[1732304209361,0.00999982,3280.5,3279.5,0.3037]
[1732304209521,1.5477,3280.4,3279.7,0.3037]
[1732304210622,1.6223,3280.7,3279.5,2.4063]
[1732304211072,0.00999982,3280.6,3279.5,1.8563]
[1732304211235,1.6223,3280.7,3279.5,1.8563]
[1732304211422,1.6223,3280.7,3279.7,0.3037]
[1732304213824,1.6223,3280.7,3279.6,0.55]
[1732304213825,1.6223,3280.7,3279.6,0.3037]
[1732304214161,1.6223,3280.7,3279.8,0.3037]
[1732304214929,1.6223,3280.7,3279.9,0.3037]
[1732304216062,1.6223,3280.7,3279.5,0.3037]
[1732304216237,1.3185,3280.7,3279.5,0.3037]
[1732304216424,1.3185,3280.7,3279.9,0.3037]
[1732304216627,1.0147,3280.7,3279.9,0.3037]
[1732304216830,1.5607878,3280.9,3279.8,1.5621]
[1732304217070,1.54196412,3281.2,3279.8,1.5621]
[1732304217366,1.54196412,3281.2,3279.9,0.3037]
[1732304217868,1.54370015,3281.0,3279.9,0.3037]
[1732304218170,0.01999963,3281.1,3279.4,3.25156]
[1732304218171,0.00999982,3280.7,3279.4,3.25156]
[1732304218330,0.00999982,3280.9,3279.5,0.3037]
[1732304218664,1.54370015,3281.0,3279.5,0.3037]
[1732304218870,1.57078762,3280.9,3279.5,0.3037]
[1732304219469,1.54370015,3281.0,3279.5,0.3037]
[1732304219670,1.54196412,3281.2,3279.9,0.3037]
[1732304219829,1.5352,3281.1,3279.9,0.3037]
[1732304220032,1.54370015,3281.0,3279.9,0.3037]
[1732304220676,1.5243,3280.6,3279.4,3.27456]
[1732304220867,1.5243,3280.6,3279.5,0.3037]
[1732304221175,0.00999982,3280.5,3279.5,0.3037]
[1732304222164,1.5243,3280.6,3279.5,0.3037]
[1732304222572,1.53429982,3280.6,3279.5,0.3037]
[1732304222741,1.5167,3280.3,3279.5,0.3037]
[1732304222948,1.5167,3280.3,3279.7,0.3037]
[1732304223362,1.5167,3280.3,3279.4,1.59344344]
[1732304223671,1.5607878,3280.9,3279.4,1.59344344]
[1732304223672,0.00999981,3280.2,3279.4,1.59344344]
[1732304223874,1.6004,3280.1,3279.4,1.59344344]
[1732304224175,1.6004,3280.1,3278.5,1.5598]
[1732304224376,1.6004,3280.1,3278.6,0.3037]
[1732304224672,1.6004,3280.1,3279.0,0.3037]
[1732304224834,1.6004,3280.1,3279.2,0.3037]
[1732304225369,1.30659982,3280.1,3279.2,0.3037]
[1732304225586,1.30659982,3280.1,3278.9,1.5262]
[1732304225587,0.69899982,3280.1,3278.9,0.9184]
[1732304225872,0.69899982,3280.1,3279.0,0.3037]
[1732304228193,1.5459,3280.1,3279.0,0.3037]
[1732304228457,1.5459,3280.1,3278.4,0.3037]
[1732304228674,1.5459,3280.1,3278.6,1.9273]
[1732304228992,1.5459,3280.1,3278.6,2.21197579]
[1732304229500,1.5459,3280.1,3279.0,1.9056]
[1732304229652,1.5236,3280.4,3279.4,1.9056]
[1732304229857,1.54370015,3281.0,3279.8,0.3037]
[1732304230268,1.59321082,3281.0,3280.0,0.3037]
[1732304230606,1.59321082,3281.0,3279.4,0.57112707]
[1732304230607,1.5425989,3281.3,3280.2,0.3037]
[1732304230896,1.5425989,3281.3,3280.1,1.26605938]
[1732304231099,1.59543195,3281.6,3280.1,1.26605938]
[1732304231266,1.59543195,3281.6,3280.2,1.03828994]
[1732304231656,1.59543195,3281.6,3280.4,9e-08]
[1732304231998,1.59543195,3281.6,3280.1,1.81415541]
[1732304232167,1.59543195,3281.6,3280.2,2.59216603]
[1732304232495,1.59543195,3281.6,3280.3,1.03686641]
[1732304232677,1.59543195,3281.6,3280.3,10.0]
[1732304232881,1.59543195,3281.6,3280.4,0.3037]
[1732304233978,1.59543195,3281.6,3280.6,0.3037]
[1732304234555,1.59543195,3281.6,3280.5,1.6342]
[1732304234756,1.531366,3281.4,3280.6,0.3037]
[1732304234961,1.531366,3281.4,3280.2,1.6342]
[1732304234962,0.55,3281.3,3280.3,0.3037]
[1732304235596,3.079566,3281.4,3280.3,0.3037]
[1732304240559,3.079566,3281.4,3279.8,10.0]
[1732304240560,0.55,3281.1,3279.9,0.3037]
[1732304240986,0.55,3281.1,3279.8,10.0]
[1732304241168,1.5514,3281.2,3279.8,10.0]
[1732304241565,1.5514,3281.2,3279.7,0.3037]
[1732304242109,1.5514,3281.2,3279.6,2.62]
[1732304242110,1.5514,3281.2,3279.6,0.3037]
[1732304242258,1.56139981,3281.1,3279.6,0.3037]
[1732304243116,0.55,3281.0,3279.0,11.25276523]
[1732304243261,1.531366,3281.4,3279.0,11.25276523]
[1732304243262,0.55,3280.6,3279.1,1.34195952]
[1732304243459,1.5514,3280.4,3279.1,0.3037]
[1732304243695,1.5514,3280.4,3279.3,0.3037]
[1732304244004,1.5514,3280.2,3279.3,0.3037]
[1732304244176,0.55,3280.1,3278.5,1.25276523]
[1732304244377,1.5514,3280.0,3278.6,0.3037]
[1732304244560,1.5514,3280.0,3278.7,0.3037]
[1732304244758,1.5514,3280.0,3278.7,0.90209761]
[1732304244962,1.5514,3280.0,3278.9,0.3037]
[1732304245212,1.5514,3280.0,3279.1,0.3037]
[1732304246166,1.5514,3280.0,3278.9,0.3037]
[1732304246402,1.5514,3280.0,3278.6,0.3037]
[1732304248417,1.5514,3280.0,3278.8,0.3037]
[1732304249510,1.5514,3280.0,3278.5,1.5746]
[1732304249511,1.5514,3280.0,3278.6,0.3037]
[1732304249706,1.5514,3280.0,3278.8,0.03390754]
[1732304250017,1.5514,3280.0,3278.3,1.25276523]
[1732304250018,1.5514,3280.0,3278.9,0.3037]
[1732304250712,1.5514,3280.0,3278.3,1.25276523]
[1732304250713,1.5514,3280.0,3278.4,0.3037]
[1732304250893,1.5514,3280.0,3278.6,0.3037]
[1732304252020,1.5514,3280.0,3278.7,0.3037]
[1732304252889,1.5514,3280.0,3278.8,0.3037]
[1732304253523,1.5514,3280.0,3278.5,1.25276523]
[1732304253524,1.5514,3280.0,3279.0,0.3037]
[1732304255409,1.23627188,3280.0,3279.0,0.3037]
[1732304255612,1.23627188,3280.0,3279.1,1.34274871]
[1732304255781,1.23627188,3280.0,3279.3,0.3037]
[1732304256801,1.23627188,3280.0,3279.0,0.55]
[1732304256802,1.23627188,3280.0,3279.1,0.3037]
[1732304256999,1.23627188,3280.0,3279.3,0.3037]
[1732304257785,0.00999981,3280.9,3279.0,0.3037]
[1732304257786,1.5014,3279.9,3279.0,0.3037]
[1732304257991,1.5014,3279.9,3278.7,0.3037]
[1732304258313,1.19642812,3279.9,3279.1,0.3037]
[1732304258703,1.19642812,3279.9,3278.6,10.0]
[1732304258704,1.19642812,3279.9,3278.5,2.76136523]
[1732304258909,0.00999981,3280.2,3278.6,2.90405525]
[1732304259219,0.01,3281.4,3278.8,0.3037]
[1732304259220,0.00999981,3280.0,3278.8,0.3037]
[1732304260015,0.00999981,3280.0,3278.2,0.3037]
[1732304260321,0.00999981,3279.3,3278.4,0.3037]
[1732304260679,0.04811254,3280.4,3278.4,0.3037]
[1732304260680,0.00999981,3279.1,3278.4,0.3037]
[1732304261128,0.00999981,3279.1,3277.4,1.25276523]
[1732304261129,0.00999981,3279.1,3277.4,0.3037]
[1732304261436,0.00999981,3279.1,3277.2,0.35642518]
[1732304261437,1.5002,3278.6,3277.6,0.3037]
[1732304262206,1.5002,3278.6,3277.3,0.3037]
[1732304262401,1.5002,3278.6,3277.5,0.3037]
[1732304263009,1.5002,3278.6,3277.7,0.3037]
[1732304263832,1.5002,3278.6,3277.9,0.3037]
[1732304264016,1.5002,3278.6,3278.1,0.3037]
[1732304264337,1.5002,3278.6,3277.2,1.87914784]
[1732304264338,1.5002,3278.6,3277.3,1.25276523]
[1732304264541,1.5002,3278.6,3277.4,0.3037]
[1732304265041,1.5002,3278.6,3277.5,0.3037]
[1732304265243,1.51019981,3278.6,3277.5,0.3037]
[1732304265449,1.5856,3278.2,3276.7,0.3037]
[1732304265652,1.5856,3277.8,3276.9,0.3037]
[1732304266546,1.5856,3277.8,3276.8,0.3037]
[1732304267312,1.59559981,3277.8,3276.8,0.3037]
[1732304267608,1.59559981,3277.8,3276.9,0.3037]
[1732304268542,1.59559981,3277.8,3276.1,1.5955]
[1732304268543,1.5856,3277.8,3276.4,0.3037]
[1732304268758,1.5856,3277.8,3276.9,0.3037]
[1732304269754,1.5856,3277.8,3276.5,0.3037]
[1732304270061,1.59559981,3277.8,3276.5,0.3037]
[1732304270259,0.00999981,3277.5,3276.5,0.3037]
[1732304270467,1.5061,3277.4,3276.5,0.3037]
[1732304270660,1.5061,3277.4,3275.7,11.60919041]
[1732304270661,1.5061,3277.4,3275.8,0.96386763]
[1732304270866,1.5061,3277.4,3275.8,0.60744245]
[1732304271363,1.5549,3277.0,3275.2,11.39922663]
[1732304271663,1.5549,3276.5,3275.3,0.3037]
[1732304272357,1.5557,3275.0,3274.5,0.30374245]
[1732304272668,0.00999981,3276.5,3274.7,0.3037]
[1732304272836,0.03816417,3277.2,3274.7,0.3037]
[1732304272837,0.00999981,3276.2,3274.7,0.57244245]
[1732304273224,0.00999981,3276.2,3274.7,0.3037]
[1732304273429,0.00999981,3276.7,3274.7,0.57244245]
[1732304273869,0.00999981,3276.2,3274.7,0.57244245]
[1732304274162,0.00999981,3276.2,3274.5,0.3037]
[1732304274328,0.00999981,3276.2,3274.7,0.3037]
[1732304274529,0.00999981,3276.9,3275.1,0.3037]
[1732304274730,0.01,3278.0,3275.0,0.55]
[1732304274731,0.00999981,3277.0,3275.3,0.3037]
[1732304274963,0.00999981,3277.2,3275.5,0.3037]
[1732304275463,1.6489,3276.7,3275.5,0.3037]
[1732304275964,1.6489,3276.7,3275.3,0.3037]
[1732304276181,1.3451,3276.7,3275.0,0.55]
[1732304276351,1.3451,3276.7,3275.3,0.3037]
[1732304276537,1.3451,3276.7,3275.5,0.3037]
[1732304276742,1.3451,3276.7,3275.7,0.8537]
[1732304277490,0.00999981,3277.7,3275.7,0.8537]
[1732304277646,0.00999981,3277.6,3276.1,0.3037]
[1732304277977,0.00999981,3277.6,3276.3,0.3037]
[1732304278183,0.00999981,3277.6,3276.5,0.3037]
[1732304278541,0.00999981,3278.0,3276.5,0.3037]
[1732304278777,0.03813085,3279.0,3276.5,0.3037]
[1732304278778,0.00999981,3277.6,3276.5,0.3037]
[1732304279077,0.00999981,3277.6,3276.6,0.3037]
[1732304280185,0.00999981,3277.6,3275.8,1.575]
[1732304280186,0.00999981,3278.2,3276.3,0.3037]
[1732304280338,0.00999981,3277.8,3276.5,0.3037]
[1732304280542,1.551,3277.7,3276.5,0.3037]
[1732304281277,1.551,3277.7,3275.9,0.3037]
[1732304281483,1.551,3277.7,3276.1,0.3037]
[1732304281686,1.56099981,3277.7,3276.1,0.3037]
[1732304281982,1.551,3277.7,3276.1,0.3037]
[1732304282184,1.551,3277.7,3276.5,0.3037]
[1732304282483,1.551,3277.7,3276.7,0.3037]
[1732304283555,1.551,3277.7,3276.6,0.3037]
[1732304284483,1.551,3277.7,3276.4,1.25076379]
[1732304284484,1.551,3277.7,3276.8,0.3037]
[1732304285667,1.551,3277.7,3276.7,0.3037]
[1732304286177,1.6573,3277.4,3275.8,1.87574521]
[1732304286376,1.6573,3277.4,3275.5,3.13295379]
[1732304286377,1.6573,3277.4,3275.7,1.87574521]
[1732304286584,1.6573,3277.4,3276.2,0.3037]
[1732304286749,1.6573,3277.4,3275.8,0.3037]
[1732304287073,1.6573,3277.4,3275.5,2.50099361]
[1732304287074,1.6573,3277.4,3276.0,0.3037]
[1732304287278,1.6573,3277.4,3275.5,4.574628]
[1732304287279,1.6573,3277.4,3276.2,0.3037]
[1732304288366,1.6573,3277.4,3275.8,1.87574521]
[1732304288367,0.9073,3277.4,3276.4,0.3037]
[1732304288604,0.00999981,3277.7,3276.4,0.3037]
[1732304288890,0.00999981,3277.5,3276.4,0.3037]
[1732304289203,0.00999981,3277.7,3276.4,0.3037]
[1732304289487,0.00999981,3277.7,3276.6,0.3037]
[1732304290385,0.00999981,3278.3,3276.4,0.3037]
[1732304290590,0.00999981,3278.3,3276.6,0.3037]
[1732304290767,0.00999981,3278.3,3276.8,0.3037]
[1732304290965,0.00999981,3278.3,3276.7,0.55]
[1732304290966,0.00999981,3278.2,3277.0,0.3037]
[1732304291178,0.00999981,3278.2,3276.7,1.87574521]
[1732304291179,0.00999981,3278.2,3277.2,0.3037]
[1732304291378,1.5062,3278.1,3277.2,0.3037]
[1732304292067,1.5062,3278.1,3276.7,0.3037]
[1732304292312,1.5062,3278.1,3276.9,0.3037]
[1732304292476,1.5062,3278.1,3277.1,0.3037]
[1732304292797,0.00999981,3278.2,3277.1,0.3037]
[1732304293504,0.04812807,3279.3,3276.8,0.3037]
[1732304293505,0.00999981,3277.8,3276.8,0.3037]
[1732304294602,0.00999981,3277.8,3276.9,0.3037]
[1732304295405,0.05813074,3279.1,3276.9,0.3037]
[1732304295406,0.00999981,3277.7,3276.9,0.3037]
[1732304295562,0.00999981,3277.7,3276.4,1.5610262]
[1732304295897,0.8683,3277.6,3276.6,0.3037]
[1732304296728,0.8683,3277.6,3276.5,0.3037]
[1732304296866,0.8683,3277.6,3275.7,4.19268762]
[1732304296867,0.00999981,3277.0,3276.0,1.2573262]
[1732304297067,0.8683,3276.9,3276.0,0.3037]
[1732304297909,0.00999981,3276.6,3275.6,0.3037]
[1732304298079,0.8683,3276.5,3275.6,0.3037]
[1732304298285,0.8683,3276.5,3275.8,0.3037]
[1732304298612,0.8683,3276.5,3276.0,0.3037]
[1732304299505,0.8683,3276.5,3275.5,0.3037]
[1732304299806,0.8683,3276.5,3275.7,0.3037]
[1732304299981,0.8683,3276.5,3275.9,0.3037]
[1732304300584,0.8683,3276.5,3275.6,0.3037]
[1732304300780,0.8683,3276.5,3274.9,1.87574521]
[1732304301007,0.8683,3275.9,3274.7,10.0]
[1732304301225,0.8683,3275.7,3274.8,1.56270363]
[1732304301503,0.8683,3275.7,3274.7,10.0]
[1732304301711,0.8683,3275.7,3274.8,1.56293148]
[1732304302018,0.8683,3275.3,3274.2,1.87574521]
[1732304302173,0.8683,3275.3,3274.2,3.43910408]
[1732304302378,0.00999981,3275.2,3274.3,1.56335887]
[1732304302614,0.8683,3275.1,3273.7,0.3037]
[1732304302920,0.01,3276.5,3273.2,1.91165018]
[1732304302921,0.00499981,3274.8,3273.4,1.87574521]
[1732304303126,0.00499981,3274.2,3273.0,1.87574521]
[1732304303343,0.8683,3274.1,3272.8,11.87574521]